Cogmind - Beta 10.2 @@@ ROGUE MODE // 2020.12.15 @ 18:32:25 Player: sweetandcool Result: Self-destructed Performance ------------- Evolutions (4) 2000 Regions Visited (8) 1600 Robots Destroyed (120) 600 Value Destroyed (3760) 3760 Prototype IDs (36) 720 Alien Tech Used (0) 0 Bonus (1725) 1725 TOTAL SCORE: 10405 Bonus ------- High Alert Combat Kills 1137 Follower Combat Kills 288 Aligned with FarCom 300 Cogmind --------- Core Integrity 356/850 Matter 40/300 Energy 12/100 System Corruption 1% Temperature Cool (0) Movement Walking (120) Location -6/Factory Parts ------- > --- POWER (1) -------- (None) > --- PROPULSION (5) --- Carbon-fiber Leg > --- UTILITY (7) ------ Advanced Targeting Computer Advanced Targeting Computer > --- WEAPON (2) ------- (None) > --- INVENTORY (4) ---- Guided Plasma Cannon Peak State ------------ > --- POWER ------------ Light Angular Momentum Engine > --- PROPULSION ------- Armored Treads Armored Treads Armored Treads Armored Treads Armored Treads > --- UTILITY ---------- Humpback Advanced Weight Redist. System Advanced Targeting Computer Experimental Targeting Computer Hacking Suite Hacking Suite > --- WEAPON ----------- High-powered Shotgun Long-range Missile Launcher > --- INVENTORY -------- Light Nuclear Core Light Treads Improved Heat Sink Large Storage Unit Humpback Matter Compressor Improved Terrain Scanner Terrain Scan Processor Advanced Targeting Computer Advanced ECM Suite Phase Shifter Improved Utility Shielding Light Armor Plating Improved Light Armor Plating Improved Light Armor Plating Heavy Particle Gun Guided Plasma Cannon Enhanced Autogun Flak Cannon Magnetic Acceleration Cannon Long-range Missile Launcher Long-range Missile Launcher Long-range Missile Launcher [Rating: 56] Favorites ----------- Power Light Nuclear Core Engine Light Ion Engine Power Core Light Nuclear Core Propulsion Light Treads Treads Light Treads Leg Carbon-fiber Leg Flight Unit Improved VTOL Module Utility Advanced Targeting Computer Device Advanced Weight Redist. System Storage Humpback Processor Advanced Targeting Computer Hackware Hacking Suite Protection Light Armor Plating Weapon Heavy Particle Gun Energy Gun Heavy Particle Gun Energy Cannon Guided Plasma Cannon Ballistic Gun High-powered Shotgun Ballistic Cannon Flak Cannon Launcher Grenade Launcher Build | -11 -10 -10 -10 -9 -8 -8 -8 -6 ------- Run | Scr Mat Min Exi Min Mat Sto Rec Fac Slots Evolved 8 | . . . . . 4 . . 4 Power . | . . . . . . . . . Propulsion 3 | . . . . . 2 . . 1 Utility 5 | . . . . . 2 . . 3 Weapon . | . . . . . . . . . Parts Attached 106 | 7 6 1 6 2 14 39 5 26 Power 10 | 1 1 . 1 . 2 2 . 3 Engine 6 | 1 1 . 1 . 1 . . 2 Core 4 | . . . . . 1 2 . 1 Reactor . | . . . . . . . . . Propulsion 34 | 2 2 . . 1 1 19 5 4 Treads 31 | 2 2 . . 1 1 18 5 2 Leg 2 | . . . . . . . . 2 Wheel . | . . . . . . . . . Hover . | . . . . . . . . . Flight 1 | . . . . . . 1 . . Utility 27 | 2 1 . 4 . 7 3 . 10 Device 7 | 1 . . 1 . 2 2 . 1 Storage 8 | 1 1 . 3 . 1 1 . 1 Processor 4 | . . . . . 2 . . 2 Hackware 2 | . . . . . . . . 2 Protection 6 | . . . . . 2 . . 4 Artifact . | . . . . . . . . . Weapon 35 | 2 2 1 1 1 4 15 . 9 Energy Gun 11 | 2 1 . . . 1 6 . 1 Energy Cannon 2 | . . . . . . 2 . . Ballistic Gun 6 | . 1 . 1 1 1 2 . . Ballistic Cannon 9 | . . . . . 2 3 . 4 Launcher 7 | . . 1 . . . 2 . 4 Special Weapon . | . . . . . . . . . Impact Weapon . | . . . . . . . . . Slashing Weapon . | . . . . . . . . . Piercing Weapon . | . . . . . . . . . Special Melee Weapon . | . . . . . . . . . Unidentified Prototypes 5 | . . . . . 1 3 . 1 Parts Lost 35 | . 2 1 . 4 3 2 . 23 Power 4 | . . . . 1 . . . 3 Propulsion 9 | . . . . 2 . . . 7 Utility 10 | . . . . . 2 . . 8 Weapon 12 | . 2 1 . 1 1 2 . 5 Highest Loss Streak 12 | . 1 1 . 4 2 1 . 12 Average Slot Usage (%) 87 | . 99 85 84 87 68 89 90 83 Engine 4 | . 14 14 14 8 5 . . 2 Core 4 | . . . . . . 9 9 3 Treads 28 | . 28 28 28 22 9 35 36 24 Device 10 | . 14 14 9 14 10 9 9 7 Storage 10 | . 14 14 14 14 9 9 9 5 Processor 6 | . . . . . 8 9 9 12 Hackware 1 | . . . . . . . . 9 Protection 1 | . . . . . 6 . . 2 Energy Gun 8 | . 21 . . . . 11 9 3 Ballistic Gun 6 | . 6 . 4 19 6 2 9 4 Ballistic Cannon 2 | . . . . . 10 3 . 2 Launcher 2 | . . 14 14 7 . . . 2 Naked Turns . | . . . . . . . . . Heaviest Build 108 | 12 22 23 87 24 36 108 91 106 Greatest Support 109 | 40 40 40 40 40 49 89 89 109 Greatest Overweight (x) 8 | . . . 2 . 1 1 1 8 Average Overweight (x) . | . . . . . . . 1 . Largest Inventory Capacity 30 | 6 10 10 24 10 10 30 24 24 Average Capacity 17 | 5 7 10 12 10 10 22 24 23 Most Carried 24 | 2 6 6 10 9 10 24 24 24 Average Carried 15 | 1 4 6 7 8 9 21 23 18 Final Capacity 24 | 6 10 10 10 10 10 24 24 4 Final Carried 24 | 2 6 6 9 7 10 24 24 1 Class Distribution -------------------- 35% | Mutant 26% | Hauler-Mutant 21% | Commander-Mutant 8% | Scavenger-Mutant 8% | Skirmisher Dominant Class ---------------- Mutant | -10/Materials Mutant | -10/Mines Mutant | -10/Exiles Skirmisher | -9/Mines Mutant | -8/Materials Hauler-Mutant | -8/Storage Commander-Mutant | -8/Recycling Hauler-Mutant | -6/Factory Resources | -11 -10 -10 -10 -9 -8 -8 -8 -6 ----------- Run | Scr Mat Min Exi Min Mat Sto Rec Fac Matter Collected 2507 | 270 68 . . 181 368 850 53 717 Remotely . | . . . . . . . . . Salvage Created 3826 | 159 401 6 . 126 368 1885 . 881 Parts 220 | 10 32 3 . 9 25 92 . 49 Haulers Intercepted 6 | . . . . . . 6 . . Recyclers Shooed 14 | . 1 . . . 1 1 1 10 Parts Field Recycled . | . . . . . . . . . Retrieved Matter . | . . . . . . . . . Parts Self-Destructed . | . . . . . . . . . Prevented . | . . . . . . . . . Kills | -11 -10 -10 -10 -9 -8 -8 -8 -6 ------- Run | Scr Mat Min Exi Min Mat Sto Rec Fac Combat Hostiles Destroyed 86 | . 10 3 . 6 13 30 . 24 Guns 42 | . 10 . . 2 5 21 . 4 Cannons 19 | . . . . . 8 3 . 8 AOE 25 | . . 3 . 4 . 6 . 12 Classes Destroyed 13 | 3 3 . . . 1 4 . 2 Worker 8 | 1 1 . . 2 . 1 . 3 Builder 2 | . . . . . . 1 . 1 Tunneler 3 | 3 . . . . . . . . Hauler 6 | . . . . . . 6 . . Recycler 7 | 1 1 . . . 2 1 . 2 Operator 4 | . . . . . . 3 . 1 Watcher 4 | . 1 . . . . 2 . 1 Swarmer 27 | . 6 3 . 4 7 2 . 5 Grunt 33 | . 4 . . 2 1 17 . 9 Duelist 2 | . . . . . . . . 2 Sentry 14 | . . . . . 5 7 . 2 Hunter 9 | . . . . . . 4 . 5 Programmer 1 | . . . . . . . . 1 Best Kill Streak 12 | 2 3 3 . 4 5 7 . 12 Combat Bots Only 7 | . 3 3 . 4 4 7 . 6 Max Kills in Single Turn 4 | 1 1 2 . 3 1 3 . 4 Gunslinging . | . . . . . . . . . Exploded 3 | . . 2 . 3 . 3 . 3 Melee . | . . . . . . . . . Uniques/NPCs Destroyed . | . . . . . . . . . Combat | -11 -10 -10 -10 -9 -8 -8 -8 -6 -------- Run | Scr Mat Min Exi Min Mat Sto Rec Fac Damage Taken 6089 | . 378 49 . 320 432 1446 51 3413 Core 794 | . 24 . . 42 67 167 . 494 Absorbed by Shields 150 | . . . . . 141 . 9 . Core Remaining (%) 76 | 100 . . . 73 . . 57 . Volleys Fired 329 | 11 49 3 . 19 57 118 2 70 Largest 2 | 2 2 1 . 2 2 2 2 2 Hottest 120 | 80 80 30 . 40 94 120 80 98 Shots Fired 546 | 22 96 3 . 32 80 195 4 114 Gun 358 | 22 96 . . 26 22 144 4 44 Cannon 164 | . . . . . 58 45 . 61 Launcher 24 | . . 3 . 6 . 6 . 9 Special . | . . . . . . . . . Kinetic 244 | . 8 . . 26 78 48 2 82 Thermal 126 | . 39 . . . . 62 2 23 Explosive 24 | . . 3 . 6 . 6 . 9 Electromagnetic 152 | 22 49 . . . 2 79 . . Robot Hit Streak 38 | 7 10 4 . 5 15 38 2 16 Robot Miss Streak 5 | 2 3 . . 2 5 3 2 4 Penetration Max . | . . . . . . . . . Secondary Targets 3 | . 1 . . 1 . 1 . . Max Gunslinging Chain 1 | . 1 . . 1 . 1 . . Shots Hit Robots 416 | 13 62 3 . 20 73 142 3 100 Core Hits 285 | 5 24 3 . 14 38 91 1 109 Critical Hits 2 | . . . . . . 1 . 1 Critical Kills 1 | . . . . . . 1 . . Critical Parts Destroyed 1 | . . . . . . . . 1 Melee Attacks . | . . . . . . . . . Impact . | . . . . . . . . . Slashing . | . . . . . . . . . Piercing . | . . . . . . . . . Sneak Attacks . | . . . . . . . . . Combat Hostiles . | . . . . . . . . . Follow-up Attacks . | . . . . . . . . . Damage Inflicted 10775 | 290 835 222 . 430 893 3471 40 4594 Guns 4481 | 177 806 . . 141 160 2479 27 691 Cannons 2551 | . . . . . 733 583 . 1235 Explosions 3707 | 113 29 222 . 289 . 395 . 2659 Melee . | . . . . . . . . . Ramming 36 | . . . . . . 14 13 9 Kinetic 3474 | . 50 . . 141 861 806 9 1607 Thermal 2040 | 113 306 . . . . 860 18 743 Explosive 2955 | . . 222 . 289 . 209 . 2235 Electromagnetic 2270 | 177 479 . . . 32 1582 . . Impact . | . . . . . . . . . Slashing . | . . . . . . . . . Piercing . | . . . . . . . . . Highest Corruption 1 | . . . . . . . . 1 Average Corruption 1 | . . . . . . . . 1 Corruption Purged . | . . . . . . . . . Overload Shots . | . . . . . . . . . Overflow Damage 157 | 2 . 10 . . . 47 . 98 Projectiles 43 | . . . . . . 10 . 33 Explosions 114 | 2 . 10 . . . 37 . 65 Melee . | . . . . . . . . . Knockbacks 57 | . . . . . 17 15 . 25 Impact . | . . . . . . . . . Kinetic 56 | . . . . . 17 15 . 24 Secondary 1 | . . . . . . . . 1 Self-Inflicted Damage 378 | . . . . 51 . 175 . 152 Shots 9 | . . . . 2 . 4 . 3 Rammed 3 | . . . . . . 1 1 1 Targets Rammed 4 | . . . . . . 2 1 1 Kicked . | . . . . . . . . . Crushed 1 | . . . . . . 1 . . Highest Temperature 268 | 72 156 . . 37 180 268 15 135 Average Temperature 51 | 24 44 . . 15 59 59 7 43 Received Heat Transfer 1279 | . 150 . . 147 93 360 16 513 Effects 1 | . . . . . . 1 . . Energy Bleed 1 | . . . . . . 1 . . Siege Activations . | . . . . . . . . . Robots Corrupted 1 | . . . . . . 1 . . Combat Hostiles . | . . . . . . . . . Parts Fried 13 | 3 1 . . . . 9 . . Impact Corruptions . | . . . . . . . . . Robots Melted . | . . . . . . . . . Combat Hostiles . | . . . . . . . . . Parts Melted 3 | . . . . . . . . 3 Heat Transferred 3249 | 150 725 . . . . 1458 37 879 Parts Sabotaged 2 | . . . . . . . . 2 Parts Stolen . | . . . . . . . . . Parts Stripped . | . . . . . . . . . Power Chain Reactions 8 | 2 1 . . . . 5 . . Missiles Intercepted . | . . . . . . . . . Alert | -11 -10 -10 -10 -9 -8 -8 -8 -6 ------- Run | Scr Mat Min Exi Min Mat Sto Rec Fac Peak Influence 1639 | 25 316 124 . 115 256 833 595 1639 Initial 1149 | . 16 64 . . 3 59 324 1149 Average 416 | 12 157 116 . 33 103 482 397 1262 Maximum Alert Level 5 | . 1 . . . 1 3 2 5 Low Security (%) 38 | 100 72 100 . 100 87 9 13 . Level 1 23 | . 27 . . . 12 34 39 . Level 2 15 | . . . . . . 25 46 . Level 3 12 | . . . . . . 30 . 15 Level 4 10 | . . . . . . . . 82 Level 5 . | . . . . . . . . 1 High Security . | . . . . . . . . . Max Security . | . . . . . . . . . Squads Dispatched 26 | . 2 . . . 1 9 1 13 Investigation 2 | . . . . . . 2 . . Extermination 1 | . . . . . . . . 1 Reinforcement 14 | . 2 . . . . 5 1 6 Assault 3 | . . . . . . . . 3 Garrison 6 | . . . . . 1 2 . 3 Intercept . | . . . . . . . . . Construction Impeded 4 | . . . . . . . 1 3 Haulers Reinforced 1 | . . . . . . . . 1 Stealth | -11 -10 -10 -10 -9 -8 -8 -8 -6 --------- Run | Scr Mat Min Exi Min Mat Sto Rec Fac Distress Signals 16 | . 4 . . . 4 5 1 2 Communications Jammed . | . . . . . . . . . Distress Signals . | . . . . . . . . . Times Spotted 179 | . 23 3 . 8 22 52 21 50 Peak Tracking Total 8 | . 4 3 . 4 4 4 4 8 Tactical Retreats 15 | . 4 . . . 1 6 . 4 Traps | -11 -10 -10 -10 -9 -8 -8 -8 -6 ------- Run | Scr Mat Min Exi Min Mat Sto Rec Fac Traps Triggered 4 | . 1 . . . . 3 . . Indirectly . | . . . . . . . . . Trap Hack Attempts . | . . . . . . . . . Triggered . | . . . . . . . . . Disarmed . | . . . . . . . . . Reprogrammed 1 | . 1 . . . . . . . Reused . | . . . . . . . . . Traps Extracted . | . . . . . . . . . Installed . | . . . . . . . . . Triggered . | . . . . . . . . . Machines | -11 -10 -10 -10 -9 -8 -8 -8 -6 ---------- Run | Scr Mat Min Exi Min Mat Sto Rec Fac Machines Disabled 15 | . . . . . . 9 3 3 Max in Single Turn 1 | . . . . . . 1 . 1 Garrison Access 3 | . . . . . 1 1 . 1 Machines Sabotaged . | . . . . . . . . . Garrisons Compromised . | . . . . . . . . . Overloaded Fab Kills . | . . . . . . . . . Fab Network Shutdowns . | . . . . . . . . . Hacking | -11 -10 -10 -10 -9 -8 -8 -8 -6 --------- Run | Scr Mat Min Exi Min Mat Sto Rec Fac Machines Accessed 25 | . 5 . 2 . 3 9 5 1 Terminals 20 | . 5 . . . 2 7 5 1 Fabricators . | . . . . . . . . . Repair Stations . | . . . . . . . . . Recycling Units 1 | . . . . . . 1 . . Scanalyzers . | . . . . . . . . . Garrison Access 2 | . . . . . 1 1 . . Total Hacks 82 | . 19 . 7 . 12 24 17 3 Successful 47 | . 10 . 7 . 8 12 9 1 Failed 34 | . 8 . . . 4 12 8 2 Catastrophic 3 | . 1 . . . . 1 1 . Database Lockouts 1 | . 1 . . . . . . . Manual 42 | . 8 . 1 . 13 9 11 . Terminals 71 | . 19 . . . 11 21 17 3 Fabricators . | . . . . . . . . . Repair Stations . | . . . . . . . . . Recycling Units 1 | . . . . . . 1 . . Scanalyzers . | . . . . . . . . . Garrison Access 3 | . . . . . 1 2 . . Terminal Hacks 33 | . 8 . 7 . 4 7 6 1 Record 6 | . . . 6 . . . . . Part Schematic 5 | . 1 . . . 1 2 1 . Robot Analysis 6 | . 1 . . . 2 . 2 1 Prototype ID Bank 5 | . 2 . . . 1 1 1 . Open Door 2 | . . . . . . 2 . . Branch Access Points 2 | . . . . . . 1 1 . Unreport Threat 1 | . . . . . . . 1 . Locate Traps 2 | . 2 . . . . . . . Reprogram Traps 1 | . 1 . . . . . . . Zone Layout 2 | . 1 . . . . 1 . . EX-Prototype ID Bank 1 | . . . 1 . . . . . Fabricator Hacks . | . . . . . . . . . Repair Station Hacks . | . . . . . . . . . Recycling Unit Hacks . | . . . . . . . . . Scanalyzer . | . . . . . . . . . Garrison Access Hacks 2 | . . . . . 1 1 . . Seal Access 2 | . . . . . 1 1 . . Unauthorized Hacks 12 | . 2 . . . 3 4 3 . Terminals 11 | . 2 . . . 3 3 3 . Botnet 10 | . 2 . . . 2 3 3 . Disrupt 1 | . . . . . 1 . . . Fabricators . | . . . . . . . . . Repair Stations . | . . . . . . . . . Recycling Units 1 | . . . . . . 1 . . Mask 1 | . . . . . . 1 . . Scanalyzers . | . . . . . . . . . Garrison Access . | . . . . . . . . . Data Cores Recovered . | . . . . . . . . . Used . | . . . . . . . . . Hacking Detections 19 | . 4 . . . 2 7 5 1 Full Trace Events 2 | . 1 . . . . 1 . . Feedback Events . | . . . . . . . . . Feedback Blocked . | . . . . . . . . . Robot Schematics Acquired . | . . . . . . . . . Robots Built . | . . . . . . . . . Matter . | . . . . . . . . . Time . | . . . . . . . . . Total Robot Build Rating . | . . . . . . . . . Part Schematics Acquired 5 | . 1 . . . 1 2 1 . Parts Built . | . . . . . . . . . Matter . | . . . . . . . . . Time . | . . . . . . . . . Total Part Build Rating . | . . . . . . . . . Parts Repaired . | . . . . . . . . . Time . | . . . . . . . . . Parts Recycled . | . . . . . . . . . Recycled Matter . | . . . . . . . . . Retrieved Matter . | . . . . . . . . . Retrieved Components . | . . . . . . . . . Parts Scanalyzed . | . . . . . . . . . Part Schematics Acquired . | . . . . . . . . . Parts Damaged . | . . . . . . . . . Bothacking | -11 -10 -10 -10 -9 -8 -8 -8 -6 ------------ Run | Scr Mat Min Exi Min Mat Sto Rec Fac Used RIF Installer . | . . . . . . . . . Robots Hacked . | . . . . . . . . . Non-combat . | . . . . . . . . . Combat . | . . . . . . . . . Robot Hacks Applied . | . . . . . . . . . Relay Couplers Released 4 | . . . . . . 1 . 3 Machine Destruction 4 | . . . . . . 1 . 3 Robots Rewired 10 | . . . . . . . 10 . Allies Hacked . | . . . . . . . . . Hacks Repelled . | . . . . . . . . . Allies | -11 -10 -10 -10 -9 -8 -8 -8 -6 -------- Run | Scr Mat Min Exi Min Mat Sto Rec Fac Total Allies 20 | . . . . . . 10 10 . Largest Group 15 | . . . . . . 10 15 10 Highest-Rated Group 262 | . . . . . . 173 262 184 Highest-Rated Ally 34 | . . . . . . 29 34 34 Total Orders . | . . . . . . . . . Ally Attacks 271 | . . . . . . 3 224 44 Total Damage 3530 | . . . . . . 48 2724 758 Kills 66 | . . . . . . 1 60 5 Allies Corrupted . | . . . . . . . . . Allies Melted . | . . . . . . . . . Intel | -11 -10 -10 -10 -9 -8 -8 -8 -6 ------- Run | Scr Mat Min Exi Min Mat Sto Rec Fac Robot Analysis Total 6 | . 1 . . . 2 . 2 1 Derelict Logs Recovered 1 | . . . . 1 . . . . Drone Launches . | . . . . . . . . . Drone Recoveries . | . . . . . . . . . Exploration | -11 -10 -10 -10 -9 -8 -8 -8 -6 ------------- Run | Scr Mat Min Exi Min Mat Sto Rec Fac Turns Passed 7384 | 151 956 27 604 631 850 2284 1058 823 Spaces Moved 3358 | 70 472 13 350 334 375 974 462 308 Core 9 | 5 . . . . . . . 4 Treads 3349 | 65 472 13 350 334 375 974 462 304 Legs . | . . . . . . . . . Wheels . | . . . . . . . . . Hover . | . . . . . . . . . Flight . | . . . . . . . . . Fastest Speed 50 | 50 160 160 160 160 160 160 182 50 Average Speed 173 | 152 160 160 166 160 178 179 185 179 Slowest Speed 450 | 160 160 160 200 160 180 185 190 450 Overloaded Moves . | . . . . . . . . . Propulsion Burnouts . | . . . . . . . . . Robots Hopped . | . . . . . . . . . Cave-ins Triggered . | . . . . . . . . . Exploration Rate (%) 49 | 4 72 5 66 61 32 96 98 7 Regions Visited 8 Branch Regions 5 Pre-discovered Areas 1 | . . . 1 . . . . . Known Exits Taken 2 | . . . . . 1 1 . . Unknown Exits Taken 6 | 1 1 1 1 1 . . 1 . Scrap Searched 2 | . . . . 2 . . . . Spaces Dug 28 | . . . . . . 13 . 15 Terrain Destroyed 259 | 10 2 17 . 46 . 66 . 118 Melee . | . . . . . . . . . Projectile 6 | . . . . . . 1 . 5 AOE 253 | 10 2 17 . 46 . 65 . 113 Terrain Rammed . | . . . . . . . . . Walls Destroyed . | . . . . . . . . . Machines Disabled . | . . . . . . . . . Actions | -11 -10 -10 -10 -9 -8 -8 -8 -6 --------- Run | Scr Mat Min Exi Min Mat Sto Rec Fac Total 4374 | 89 578 16 371 404 479 1320 659 458 Wait 286 | . 45 . . 50 20 122 23 26 Move 3350 | 69 471 12 349 333 374 973 461 308 Hop . | . . . . . . . . . Pick Up 78 | 2 5 . 11 . 7 31 1 21 Fast Attach 33 | 7 3 . 2 . 8 6 1 6 Attach 23 | . 1 . 2 2 1 4 . 13 Detach 1 | . . . 1 . . . . . Swap 50 | . 2 1 2 . 5 29 4 7 Drop 59 | . 2 . 4 . 7 34 6 6 Fire 329 | 11 49 3 . 19 57 118 2 70 Melee . | . . . . . . . . . Ram . | . . . . . . . . . Kick . | . . . . . . . . . Crush 4 | . . . . . . 2 1 1 Escape Stasis . | . . . . . . . . . Rewire 161 | . . . . . . 1 160 . Trap . | . . . . . . . . . Miscellaneous . | . . . . . . . . . Route ------- -11/Scrapyard -10/Materials (discovered 4 exits: [*Mat x3] / [*Min]) -10/Mines -10/Exiles -9/Mines -8/Materials (discovered 2 exits: *Sto x2) -8/Storage (discovered 2 exits: [*Fac] / *Rec) -8/Recycling -6/Factory (discovered 1 exit: [*Low]) History --------- Turn | Location | Event 5 | -11/Scrapyard | Discovered new exit (range 15) 152 | -11/Scrapyard | Entered Materials 317 | -10/Materials | Build established: Mutant 335 | -10/Materials | Discovered new exit (range 15) 507 | -10/Materials | Discovered new exit (range 13) 749 | -10/Materials | Discovered new exit (range 16) 818 | -10/Materials | Central database locked down 820 | -10/Materials | Discovered new exit (range 14) 1108 | -10/Materials | Entered Mines 1129 | -10/Mines | Deemed a non-threat by the Exiles lab entrance 1129 | -10/Mines | Discovered new exit (range 5) 1135 | -10/Mines | Entered Exiles 1174 | -10/Exiles | Met 8R-AWN 1201 | -10/Exiles | Met EX-HEX 1326 | -10/Exiles | Met EX-BIN 1343 | -10/Exiles | Aligned with FarCom system 1345 | -10/Exiles | Given EX-Vault access code 1382 | -10/Exiles | Opened EX-Vault 1391 | -10/Exiles | Found Gui. Plasma Cannon 1423 | -10/Exiles | Warned to stay clear of 0b10 Research branches 1474 | -10/Exiles | Met EX-DEC 1496 | -10/Exiles | Learned location of Zion (-7) 1608 | -10/Exiles | Discovered new exit (range 10) 1739 | -10/Exiles | Left Exiles lab with Gui. Plasma Cannon 1739 | -10/Exiles | Entered Mines 1770 | -9/Mines | Met a Derelict bent on vengeance 2152 | -9/Mines | Lost 4 parts (1p2n1w) 2312 | -9/Mines | Discovered new exit (range 14) 2370 | -9/Mines | Entered Materials 2370 | -8/Materials | Evolved 4 slots: Propulsion x2, Utility x2 2371 | -8/Materials | Identified exit to Storage 2407 | -8/Materials | Build established: Skirmisher 2510 | -8/Materials | Garrison activated, responded to threat 2810 | -8/Materials | Build established: Mutant 3205 | -8/Materials | Discovered exit to Storage (range 3) 3220 | -8/Materials | Entered Storage 3668 | -8/Storage | Build established: Hauler-Mutant 4237 | -8/Storage | Build established: Scavenger-Mutant 4429 | -8/Storage | Identified exit to Recycling 4558 | -8/Storage | Garrison activated, responded to threat 4626 | -8/Storage | Discovered new exit (range 8) 4631 | -8/Storage | Destroyed 7 combat bots 4837 | -8/Storage | Build established: Hauler-Mutant 4843 | -8/Storage | Used back door to open Recycling access 5210 | -8/Storage | Assisted by bots powering up and referring to "LRC-V3" 5432 | -8/Storage | Found Prototype Processor 5504 | -8/Storage | Entered Recycling 5504 | -8/Recycling | Accompanied by 10 allies 5509 | -8/Recycling | Build established: Commander-Mutant 5515 | -8/Recycling | Spotter reported a threat 5527 | -8/Recycling | Spotter reported a threat 5534 | -8/Recycling | Spotter reported a threat 5554 | -8/Recycling | Spotter reported a threat 5561 | -8/Recycling | Spotter reported a threat 5579 | -8/Recycling | Spotter reported a threat 5585 | -8/Recycling | Spotter reported a threat 5587 | -8/Recycling | Spotter reported a threat 5614 | -8/Recycling | Spotter reported a threat 5658 | -8/Recycling | Spotter reported a threat 5736 | -8/Recycling | Spotter reported a threat 5747 | -8/Recycling | Spotter reported a threat 5761 | -8/Recycling | Spotter reported a threat 5788 | -8/Recycling | Spotter reported a threat 5847 | -8/Recycling | Spotter reported a threat 5850 | -8/Recycling | Spotter reported a threat 5859 | -8/Recycling | Spotter reported a threat 5859 | -8/Recycling | Spotter reported a threat 5903 | -8/Recycling | Spotter reported a threat 5953 | -8/Recycling | Spotter reported a threat 5953 | -8/Recycling | Spotter reported a threat 5966 | -8/Recycling | Spotter reported a threat 6004 | -8/Recycling | Spotter reported a threat 6039 | -8/Recycling | Spotter reported a threat 6039 | -8/Recycling | Spotter reported a threat 6040 | -8/Recycling | Spotter reported a threat 6040 | -8/Recycling | Spotter reported a threat 6090 | -8/Recycling | Spotter reported a threat 6130 | -8/Recycling | Spotter reported a threat 6137 | -8/Recycling | Spotter reported a threat 6138 | -8/Recycling | Spotter reported a threat 6186 | -8/Recycling | Spotter reported a threat 6186 | -8/Recycling | Spotter reported a threat 6187 | -8/Recycling | Spotter reported a threat 6217 | -8/Recycling | Spotter reported a threat 6236 | -8/Recycling | Spotter reported a threat 6236 | -8/Recycling | Spotter reported a threat 6236 | -8/Recycling | Spotter reported a threat 6277 | -8/Recycling | Spotter reported a threat 6277 | -8/Recycling | Spotter reported a threat 6277 | -8/Recycling | Spotter reported a threat 6331 | -8/Recycling | Spotter reported a threat 6331 | -8/Recycling | Spotter reported a threat 6331 | -8/Recycling | Spotter reported a threat 6331 | -8/Recycling | Spotter reported a threat 6355 | -8/Recycling | Discovered new exit (range 15) 6376 | -8/Recycling | Spotter reported a threat 6376 | -8/Recycling | Spotter reported a threat 6376 | -8/Recycling | Spotter reported a threat 6395 | -8/Recycling | Spotter reported a threat 6431 | -8/Recycling | Spotter reported a threat 6432 | -8/Recycling | Spotter reported a threat 6432 | -8/Recycling | Spotter reported a threat 6448 | -8/Recycling | Spotter reported a threat 6480 | -8/Recycling | Spotter reported a threat 6484 | -8/Recycling | Spotter reported a threat 6485 | -8/Recycling | Spotter reported a threat 6485 | -8/Recycling | Spotter reported a threat 6537 | -8/Recycling | Spotter reported a threat 6538 | -8/Recycling | Spotter reported a threat 6538 | -8/Recycling | Spotter reported a threat 6562 | -8/Recycling | Entered Factory 6562 | -6/Factory | Accompanied by 10 allies 6562 | -6/Factory | Evolved 4 slots: Propulsion x1, Utility x3 6736 | -6/Factory | Identified Exp. Targeting Computer 6889 | -6/Factory | Discovered new exit (range 11) 7058 | -6/Factory | Build established: Hauler-Mutant 7083 | -6/Factory | Garrison activated, responded to threat 7185 | -6/Factory | Garrison activated, responded to threat 7241 | -6/Factory | Lost 12 parts (1p5n5u1w) 7262 | -6/Factory | First assault squad dispatched 7377 | -6/Factory | Core integrity fell below 50% 7385 | -6/Factory | Self-destructed Last Messages --------------- 07373_ Relay Coupler [ARC] tumbles out of Garrison Access. 07374_ U-05 Engineer lays Concrete. 07376_ G-50 Soldier destroyed. 07376_ Imp. Light Armor Plating destroyed. 07376_ Destroyed Imp. Light Armor Plating. 07376_ S-27 Virus destroyed. 07377_ U-05 Engineer builds a Wall. 07379_ C-30 ARC bursts open, deploying its payload. 07379_ G-67 Veteran unfolds itself. 07379_ B-48 Gladiator unfolds itself. 07379_ G-50 Soldier unfolds itself. 07379_ E-15 Imp unfolds itself. 07380_ Lrn. Missile Launcher destroyed. 07382_ Acquired Carbon-fiber Leg. 07382_ Carbon-fiber Leg destroyed. 07382_ Hvy. Particle Gun destroyed. 07383_ Imp. Heat Sink blown off. 07383_ Exp. Targeting Computer blown off. 07383_ E-15 Imp destroyed. 07384_ Acquired Carbon-fiber Leg. Map ----- +----------------------------------------------------+ | ?????????????????????????????# # #? | | ?????????????????????????????# # #? | | ?????????????????????????????# # ## | | ?????????????????????????????# + # | | ???????????????????? ???????# "" "" # # | | ???????????????????? ???????# "" "" # # | | ???????????????????? ???????# """ """ # # | | ???????????????????? ???????# """ """ # # | | ???????????????????? ???????# """ """ # # | | ???????????????????? w???????# # # | | ???????????????????? ##################### # | | ???????????????????? # ! # + # | | ???????????????????? #! # """""" # # | | ?????????????????#### # # """""" # # | | ??????########### ## # """ # """""" # # | | ??????# """ """ = ## # " "" # """""" # ## | | ??????# """ """ ## # """ # # | | ??????#! """ """ ## # """ # "" + | | ####### ## + # "" # =! | | # # ## ! g% T" # *= | | # T" ###+########## ! "" !b "" # ![ | | # " [ G !!g "" ######## | | # ### ## ## ] ]g !gg #????#*# | | # #?# # # ]]]%%[ ###############?### | | ###+#####+ # # A ]!%!! ### #??## | | # #+## !@% #?# """ #???# | | """ """ # #R / # #?# """"" ##### | | """ """ # ! # # ### #?#?# """"" + | | """ """ # % # ##???##???# ! ##### | | # #+########??# """ #???# | | ##########" " #??# """"" #???# | | ?????????## # #??# "" ""% #???# | | ??????????#" # #??# % #???# | | ??????????## # """ """ #??# #???# | | ???????????# # """ """ #??# ! % #???# | | ???????????# # """ """ #??# % ] #???# | | ???????????# # #??#+#####+########## | | ???????????######### #??# | | ???????????????????#####+#####??# % | | ??????????????######## #????# | | ?????????? ###### % | | ?????????? < !!% | | ?????????? ####### ######+#### | | ??????????####+####### #?????# #?????????? | | ?????????????????????#######?????# #?????????? | | ?????????????????????????????????# #?????????? | | ?????????????????????????????????# #?????????? | | ?????????????????????????????????# #?????????? | | ?????????????????????????????????# #?????????? | | ?????????????????????????????????# #?????????? | +----------------------------------------------------+ Best States ------------- Heat Dissipation 51 Energy Generation 18 Energy Capacity 160 Matter Stores 300 Matter Capacity 300 Sight Range 16 Terrain Scan Range 16 Terrain Scan Density 10 Additional Mass Support 9 Armor Coverage 150 Evasion (%) 40 Targeting Accuracy 28 Recoil Reduction 5 Offensive Hacking 20 Item Schematics ----------------- Lrg. Storage Unit | -10/Materials | Hacked Lgt. Treads | -8/Materials | Hacked System Shield | -8/Storage | Hacked Hacking Suite | -8/Storage | Hacked Lightning Gun | -8/Recycling | Hacked Robot Schematics ------------------ None Fabricated ------------ Nothing Alien Tech Used ----------------- None Achievements -------------- None Challenges ------------ None Game ------ Seed KineticGlidesysEdition Manual? 0 Play Time 01:17:07 Cumulative 102.5 hours Start 2020.12.15 @ 12:19:58 End 2020.12.15 @ 18:32:25 Sessions 3 Manual Loads 0 Difficulty Rogue Special Mode None Game No. 72 Rogue 72 Adventurer 0 Explorer 0 Win Type - Total 0 Types 0/0/0/0/0/0/0/0/0 Lore% 57 Gallery% 60 Achievement% 51 Wizard Run 0 Options --------- ASCII 0 Keyboard 0 Movement Numpad Keybinds 0 Fullscreen 1 Font 18/SmallcapsGlow Map View 76x50 Tactical HUD 1 Map Filters NONE Filters NONE Steam 1 RUN: d4f82b3e-c85d-452b-bdea-b7e0c9634497